bitfinex/quotes_ETHUSD_20251212
["timestamp","ask_amount","ask_price","bid_price","bid_amount"]
[1765503274892,3.08040634,3246.4,3245.1,0.478]
[1765503275059,0.30804063,3246.3,3245.2,0.478]
[1765503275382,0.30804063,3246.3,3245.3,0.9631]
[1765503275778,0.30804063,3246.3,3245.4,0.4711]
[1765503275964,6.16104984,3246.2,3245.5,0.491]
[1765503276167,6.16104984,3246.2,3245.6,0.6545]
[1765503276688,6.16104984,3246.2,3245.7,0.4711]
[1765503277395,9.24157476,3246.2,3245.7,0.4711]
[1765503277589,9.24157476,3246.2,3245.6,0.1834]
[1765503277590,9.23957476,3246.2,3245.6,0.1834]
[1765503277794,0.92395748,3246.1,3245.6,0.1834]
[1765503278092,6.16142944,3246.0,3245.6,0.1834]
[1765503278268,6.16142944,3246.0,3245.6,0.6545]
[1765503279185,6.16142944,3246.0,3245.7,0.4711]
[1765503279360,6.16142944,3246.0,3245.6,0.1834]
[1765503280581,0.70853869,3245.9,3245.3,0.6545]
[1765503281093,1.28901398,3245.9,3245.0,0.1834]
[1765503281299,1.28901398,3245.9,3244.7,0.1834]
[1765503281672,0.405504,3245.8,3244.7,0.6545]
[1765503281998,9.2432832,3245.6,3244.7,0.6545]
[1765503282297,9.2432832,3245.6,3244.8,0.4711]
[1765503282694,3.0810944,3245.6,3245.5,0.6614]
[1765503283084,3.0810944,3245.6,3245.5,1.1189]
[1765503283285,3.0810944,3245.6,3244.7,0.1834]
[1765503283286,6.1621888,3245.6,3245.2,0.1992]
[1765503283490,6.1621888,3245.6,3245.3,0.4575]
[1765503283689,6.1621888,3245.6,3245.5,0.4681]
[1765503283690,3.0810944,3245.6,3245.5,0.4681]
[1765503284097,6.77839786,3245.6,3245.2,0.1992]
[1765503284397,6.77839786,3245.6,3245.5,0.4681]
[1765503284398,3.0810944,3245.6,3245.5,0.4681]
[1765503284579,3.0810944,3245.6,3245.5,0.9256]
[1765503286389,3.08055538,3246.2,3245.5,0.4681]
[1765503286592,9.24129006,3246.3,3245.3,0.491]
[1765503286794,9.24129006,3246.3,3245.4,0.4575]
[1765503287175,6.16086004,3246.3,3245.4,0.4575]
[1765503287374,9.24129006,3246.3,3245.4,0.4575]
[1765503287798,6.16086004,3246.3,3245.4,0.4575]
[1765503288299,3.08043002,3246.3,3245.4,0.4575]
[1765503289201,6.16072814,3246.4,3245.4,0.4575]
[1765503289402,3.08033514,3246.4,3246.3,0.4681]
[1765503289903,6.16072814,3246.4,3245.8,0.4575]
[1765503290078,9.24112114,3246.4,3245.6,0.491]
[1765503290279,0.002,3246.5,3245.5,0.4575]
[1765503290479,0.002,3246.5,3245.5,0.9485]
[1765503290886,0.002,3246.5,3245.6,0.4575]
[1765503291298,0.002,3246.5,3246.4,0.4681]
[1765503291691,0.002,3246.5,3246.4,0.9256]
[1765503292095,0.002,3246.5,3246.4,0.4681]
[1765503293109,0.002,3246.5,3246.1,0.4575]
[1765503293290,0.002,3246.5,3246.4,0.4681]
[1765503293681,0.002,3246.5,3246.4,0.9256]
[1765503294381,0.002,3246.5,3246.4,0.4681]
[1765503295001,0.002,3246.5,3246.4,0.9256]
[1765503296575,9.81891952,3247.3,3246.4,0.9256]
[1765503296906,9.23844423,3247.3,3246.5,0.9485]
[1765503297298,9.23844423,3247.3,3246.6,0.4575]
[1765503297606,3.07948141,3247.3,3247.2,0.6673]
[1765503297974,3.07948141,3247.3,3247.2,1.1248]
[1765503298380,6.15801464,3247.8,3247.2,1.1248]
[1765503298587,6.15801464,3247.8,3247.4,0.4681]
[1765503298775,10.5162725,3248.7,3247.3,0.4575]
[1765503298776,6.15706676,3248.3,3247.7,0.4681]
[1765503298984,6.15706676,3248.3,3248.0,0.4681]
[1765503299205,6.15706676,3248.3,3247.3,0.4575]
[1765503299404,9.85130682,3248.3,3247.4,0.491]
[1765503299807,9.85130682,3248.3,3247.4,0.9485]
[1765503300874,9.85130682,3248.3,3247.1,0.491]
[1765503300875,7.43807081,3248.0,3247.1,0.491]
[1765503301085,0.42900453,3247.9,3247.1,0.491]
[1765503301493,0.42900453,3247.9,3247.1,0.4575]
[1765503301712,0.42900453,3247.9,3247.0,0.1992]
[1765503301912,1.50047982,3247.9,3246.7,0.9485]
[1765503302115,0.405504,3247.7,3246.0,0.1992]
[1765503302312,0.405504,3247.7,3246.3,0.4575]
[1765503303120,9.23759082,3247.6,3246.3,0.4575]
[1765503303319,7.92907081,3247.5,3246.3,0.4575]
[1765503303620,1.00947982,3247.4,3246.3,0.4575]
[1765503303828,1.29248979,3247.4,3246.0,0.6567]
[1765503303999,0.98597929,3246.9,3245.8,0.1992]
[1765503304194,0.491,3246.8,3245.8,0.1992]
[1765503304505,0.491,3246.8,3245.2,0.1992]
[1765503304506,7.43807081,3246.5,3245.3,0.4575]
[1765503304703,0.61570668,3246.4,3245.3,0.4575]
[1765503305024,0.491,3246.8,3245.6,3.08107792]
[1765503305325,0.491,3246.8,3245.3,0.4575]
[1765503305326,6.16010102,3246.7,3246.3,0.6673]
[1765503305621,6.16010102,3246.7,3245.4,3.5387578]
[1765503305918,6.16010102,3246.7,3245.3,0.4575]
[1765503305919,9.24015153,3246.7,3245.3,0.4575]
[1765503306138,7.43807081,3246.4,3243.9,0.1992]
[1765503306316,0.58047529,3245.8,3244.7,0.4575]
[1765503306832,0.58047529,3246.0,3244.7,0.4575]
[1765503307126,6.16161926,3245.9,3244.7,0.4575]
[1765503307431,9.24242889,3245.9,3244.7,0.4575]
[1765503307830,9.24242889,3245.9,3244.8,0.492]
[1765503308200,9.24242889,3245.9,3244.9,0.4575]
[1765503308729,9.24242889,3245.9,3244.7,0.492]
[1765503309131,9.24090889,3245.9,3244.8,0.4575]
[1765503310823,12.32171852,3245.9,3244.8,0.4575]
[1765503311029,0.58047529,3245.4,3244.3,0.491]
[1765503311208,9.24413766,3245.3,3244.3,0.4575]
[1765503311542,12.32551688,3245.3,3244.3,0.4575]
[1765503311747,12.32551688,3245.3,3243.9,0.1992]
[1765503312046,7.43807081,3245.0,3243.9,0.1992]
[1765503312289,7.43807081,3245.0,3243.9,0.6567]
[1765503313108,1.07247529,3245.2,3244.0,0.4687]
[1765503313302,6.16313826,3245.1,3244.0,0.4687]
[1765503314730,6.16313826,3245.1,3244.1,0.03082519]
[1765503315103,6.16313826,3245.1,3244.2,0.4687]
[1765503315498,9.8243281,3245.4,3244.2,0.4687]
[1765503316134,9.7644581,3245.4,3244.2,0.4687]
[1765503316919,6.10269854,3245.4,3244.3,3.082329]
[1765503317126,6.10269854,3245.4,3244.4,0.492]
[1765503317328,6.09429854,3245.4,3244.4,0.9607]
[1765503317507,6.09429854,3245.4,3244.5,0.4043029]
[1765503317707,0.58047529,3245.6,3245.3,0.4654]
[1765503317936,0.58047529,3245.6,3244.5,0.8730029]
[1765503318124,0.58047529,3245.6,3244.6,0.4965]
[1765503318902,0.57551529,3245.6,3244.6,0.4965]
[1765503319619,6.16237866,3245.5,3244.6,0.4965]
[1765503319935,9.24356799,3245.5,3244.6,0.4965]
[1765503320238,7.43807081,3245.4,3244.2,0.4965]
[1765503320423,7.43807081,3245.4,3244.2,0.9885]
[1765503320951,7.43807081,3245.4,3244.3,0.4965]
[1765503321707,9.24057766,3245.3,3244.3,0.4965]
[1765503322449,9.24057766,3245.3,3243.9,0.1992]
[1765503322450,0.28300997,3245.0,3243.9,0.1992]
[1765503322604,0.58047529,3244.7,3243.8,0.001]
[1765503322804,7.43807081,3244.3,3243.8,0.001]
[1765503323064,0.492,3244.4,3243.8,0.001]
[1765503323224,1.07247529,3244.4,3243.8,0.001]
[1765503323621,6.164658,3244.3,3243.8,0.001]
[1765503323822,9.246987,3244.3,3243.8,0.001]
[1765503324039,9.244847,3244.3,3243.8,0.001]
[1765503324645,16.68291781,3244.3,3243.8,0.001]
[1765503324858,0.58047529,3244.2,3243.8,0.001]
[1765503325747,6.16503806,3244.1,3243.8,0.001]
[1765503326859,1.26898926,3244.0,3243.8,0.001]
[1765503327358,1.26898926,3244.0,3242.0,0.4965]
[1765503327359,13.33347729,3243.8,3242.0,0.4965]
[1765503327568,7.43807081,3243.2,3242.0,0.4965]
[1765503327768,6.16693902,3243.1,3242.0,0.4965]
[1765503328287,0.98597929,3243.0,3240.8,0.1922]
[1765503328559,0.98597929,3243.0,3241.6,0.4965]
[1765503329662,0.405504,3242.8,3241.6,0.4965]
[1765503329836,0.897504,3242.8,3241.6,0.4965]
[1765503330032,7.43807081,3242.7,3241.3,0.9895]
[1765503330567,0.897504,3242.8,3241.5,3.08497108]
[1765503330777,0.897504,3242.8,3241.4,3.58156313]
[1765503330936,0.897504,3242.8,3241.4,0.4965]
[1765503331332,7.43807081,3242.7,3241.4,0.4965]
[1765503331583,0.58047529,3242.1,3241.3,0.001]
[1765503331875,9.25354719,3242.0,3241.3,0.001]
[1765503332446,7.43807081,3241.7,3241.3,0.001]
[1765503332648,7.84357481,3241.4,3241.3,0.001]
[1765503332854,8.33557481,3241.4,3241.3,0.001]
[1765503333081,7.93007081,3241.4,3241.3,0.001]
[1765503333962,11.0151575,3241.4,3241.3,0.001]
[1765503335563,3.08451573,3242.0,3241.3,0.001]
[1765503335564,7.43807081,3243.1,3241.3,0.9756]
[1765503335862,0.492,3242.8,3241.5,0.4781]
[1765503336070,6.16769974,3242.7,3241.5,0.4781]
[1765503336267,0.58047529,3242.6,3241.6,0.4965]
[1765503336649,9.25154961,3242.7,3241.6,0.4965]
[1765503336850,0.58047529,3242.6,3241.6,0.4965]
[1765503338051,6.16808018,3242.5,3241.6,0.4965]
[1765503338955,9.25212027,3242.5,3241.6,0.4965]
[1765503339142,0.405504,3242.4,3241.3,0.001]
[1765503339457,1.47797929,3242.4,3241.3,0.001]
[1765503339659,0.98597929,3241.9,3241.3,0.001]
[1765503339968,0.405504,3241.7,3241.3,0.001]
[1765503340271,7.84357481,3241.4,3241.3,0.001]
[1765503340569,0.405504,3241.4,3241.3,0.001]
[1765503341141,0.897504,3241.4,3241.3,0.001]
[1765503342070,4.56306598,3241.4,3241.3,0.001]
[1765503343476,0.98597929,3241.3,3240.1,0.001]
[1765503344142,0.405504,3241.1,3240.1,0.001]
[1765503344469,0.405504,3240.9,3240.1,0.001]
[1765503344676,1.26898926,3240.9,3240.1,0.001]
[1765503344976,0.28300997,3240.7,3240.1,0.001]
[1765503345269,0.405504,3240.5,3240.1,0.001]
[1765503346246,0.98597929,3240.3,3240.1,0.001]
[1765503346472,0.897504,3240.2,3240.1,0.001]
[1765503348746,4.56420853,3240.2,3240.1,0.001]
[1765503350678,11.7059381,3240.2,3240.1,0.001]
[1765503352146,4.56420853,3240.2,3240.1,0.001]
[1765503352774,4.15870453,3240.2,3240.1,0.001]
[1765503353179,3.57822924,3240.2,3240.1,0.001]
[1765503353382,4.56420853,3240.2,3240.1,0.001]
[1765503354678,4.56420853,3240.2,3240.1,1.1744]
[1765503354872,4.56420853,3240.2,3240.1,0.001]
[1765503355291,4.56420853,3240.2,3240.1,0.6816]
[1765503355445,4.56420853,3240.2,3240.1,1.1744]
[1765503355446,3.08622924,3240.2,3240.1,1.1744]
[1765503355652,3.08584829,3240.6,3240.1,1.1744]
[1765503355863,3.08584829,3240.6,3240.5,0.4985]
[1765503356382,3.08519513,3241.3,3240.5,0.9913]
[1765503356551,0.58047529,3241.2,3240.8,0.4985]
[1765503356953,0.58047529,3241.3,3241.1,0.1821]
[1765503357151,6.17017338,3241.4,3241.1,0.1821]
[1765503357662,0.405504,3241.3,3241.1,0.6749]
[1765503357979,0.98597929,3241.3,3241.1,0.6749]
[1765503358485,3.49078105,3241.2,3241.1,0.6749]
[1765503358976,3.49078105,3241.2,3241.1,1.1734]
[1765503359177,3.08527705,3241.2,3241.1,1.1734]
[1765503359389,3.66575234,3241.2,3241.1,1.1734]
[1765503360284,0.58047529,3241.1,3240.9,0.1821]
[1765503360488,3.66594273,3241.0,3240.9,0.1821]
[1765503360708,3.08546744,3241.0,3240.9,0.1821]
[1765503360995,3.08535564,3241.2,3240.9,0.6806]
[1765503361157,3.08535564,3241.2,3241.1,0.4985]
[1765503361874,3.08535564,3241.2,3241.1,0.9913]
[1765503362059,2.95323226,3241.2,3241.1,0.9913]
[1765503363079,3.66542508,3241.6,3240.6,0.4928]
[1765503363080,0.405504,3241.1,3240.6,0.4928]
[1765503363280,0.55022721,3241.4,3240.6,0.4928]
[1765503365364,0.58047529,3241.1,3240.6,0.4928]
[1765503366383,6.17093488,3241.0,3240.6,0.4928]
[1765503366974,3.08546744,3241.0,3240.9,0.4985]
[1765503367294,3.08546744,3241.0,3240.9,0.9913]
[1765503368882,0.58047529,3241.3,3240.9,0.9913]
[1765503369062,7.72220486,3241.3,3240.4,0.4928]
[1765503369260,7.72220486,3241.3,3240.1,0.1831]
[1765503369261,0.58047529,3240.7,3240.1,0.1831]
[1765503370884,9.25754487,3240.6,3240.1,0.1831]
[1765503371196,7.14172957,3240.3,3240.1,0.001]
[1765503371487,0.58047529,3240.2,3240.1,0.001]
[1765503373094,3.66670453,3240.2,3240.1,1.189]
[1765503374765,3.66670453,3240.2,3240.1,0.6905]
[1765503375580,3.66670453,3240.2,3240.1,0.001]
[1765503379701,4.39118677,3240.2,3240.1,0.001]
[1765503380802,3.66670453,3240.2,3240.1,0.001]
[1765503384505,3.66670453,3240.2,3240.1,1.159]
[1765503384908,3.66670453,3240.2,3240.1,0.6606]
[1765503385091,3.66670453,3240.2,3240.1,0.001]
[1765503387637,4.07220853,3240.2,3240.1,0.001]
[1765503387914,0.405504,3240.1,3240.0,0.001]
[1765503388128,7.54723357,3240.1,3240.0,0.001]
[1765503389120,10.63355806,3240.1,3240.0,0.001]
[1765503390426,11.21403335,3240.1,3240.0,0.001]
[1765503390710,11.21403335,3240.1,3239.7,0.001]
[1765503390711,0.58047529,3240.0,3239.7,0.001]
[1765503390885,0.405504,3239.9,3239.7,0.001]
[1765503391289,3.66708557,3239.8,3239.7,0.001]
[1765503392219,3.66708557,3239.8,3239.7,0.9703]
[1765503392515,3.66708557,3239.8,3239.7,0.4719]
[1765503392716,4.3829946,3239.8,3239.7,0.001]
[1765503393420,4.7884986,3239.8,3239.7,0.001]
[1765503395298,4.7884986,3239.8,3238.9,0.001]
[1765503395299,0.405504,3239.7,3238.9,0.001]
[1765503395498,0.405504,3239.3,3238.9,0.001]
[1765503395697,0.32880218,3239.2,3238.9,0.001]
[1765503396598,0.81980218,3239.2,3238.9,0.001]
[1765503396918,0.405504,3239.1,3238.9,0.001]
[1765503397330,3.66784793,3239.0,3238.9,0.001]
[1765503399605,0.405504,3238.8,3238.4,0.001]
[1765503399805,8.12770886,3238.5,3238.4,0.001]
[1765503399999,8.84361789,3238.5,3238.4,0.001]
[1765503400195,0.405504,3238.3,3238.1,0.001]
[1765503400500,0.405504,3238.1,3237.3,0.1887]
[1765503400715,7.14172957,3237.7,3237.3,0.1887]
[1765503401106,0.58047529,3237.6,3237.3,0.6871]
[1765503401609,3.08880308,3237.5,3237.3,0.6871]
[1765503402197,0.405504,3237.4,3237.3,0.1887]
[1765503402411,3.66927837,3237.5,3237.4,0.9693]
[1765503402928,3.66927837,3237.5,3236.5,0.001]
[1765503402929,9.84688453,3237.5,3237.1,0.192]
[1765503403807,9.84688453,3237.5,3237.1,0.6536]
[1765503404332,3.66927837,3237.5,3237.4,0.4894]
[1765503404714,6.75808145,3237.5,3236.8,0.4616]
[1765503404914,6.75808145,3237.5,3236.9,0.6503]
[1765503405505,9.84688453,3237.5,3236.9,0.6503]
[1765503406105,9.84688453,3237.5,3236.6,0.192]
[1765503406106,7.14172957,3237.1,3236.6,0.192]
[1765503406310,0.58047529,3237.0,3236.6,0.192]
[1765503406523,0.58047529,3237.0,3236.5,0.4626]
[1765503407533,0.58047529,3237.0,3236.5,0.001]
[1765503407923,6.17875126,3236.9,3236.5,0.4626]
[1765503409443,0.896504,3236.8,3236.5,0.001]
[1765503409643,0.405504,3236.6,3236.5,0.001]
[1765503409939,3.08956653,3236.7,3236.6,0.4616]
[1765503410133,3.08956653,3236.7,3236.6,0.951]
[1765503411345,3.08956653,3236.7,3236.6,0.4894]
[1765503411552,3.70746075,3236.7,3236.5,0.001]
[1765503412634,0.98597929,3236.6,3236.5,0.001]
[1765503414541,4.07564128,3236.6,3236.5,0.001]
[1765503414739,4.07564128,3236.6,3236.5,0.4904]
[1765503414740,4.56664128,3236.6,3236.5,0.4904]
[1765503415050,4.56664128,3236.6,3236.5,0.952]
[1765503415354,4.99345827,3236.6,3236.5,0.952]
[1765503415722,4.16113728,3236.6,3236.5,0.952]
[1765503415947,3.67013728,3236.6,3236.5,0.952]
[1765503417232,3.08966199,3236.6,3236.5,0.4904]
[1765503417627,3.08966199,3236.6,3236.5,0.952]
[1765503418850,0.58047529,3236.9,3236.5,0.952]
[1765503419047,0.58047529,3236.9,3236.6,0.4616]
[1765503419251,3.08932868,3237.0,3236.6,0.4616]
[1765503419252,0.58047529,3237.0,3236.8,0.4894]
[1765503419448,0.58047529,3237.0,3236.9,0.4894]
[1765503419829,0.58047529,3237.0,3236.9,0.951]
[1765503420773,6.1764615,3238.1,3236.9,0.951]
[1765503420977,0.492,3238.0,3237.5,0.192]
[1765503421266,3.08823075,3238.1,3238.0,0.4894]
[1765503421667,3.66870604,3238.1,3238.0,0.951]
[1765503421990,3.08823075,3238.1,3238.0,0.951]
[1765503422128,6.17531724,3238.7,3238.0,0.951]
[1765503422330,0.58047529,3238.3,3237.3,0.4616]
[1765503422623,0.98597929,3238.0,3237.3,0.4616]
[1765503423126,0.98597929,3237.8,3237.2,0.192]
[1765503423451,0.98597929,3237.8,3237.0,0.192]
[1765503423662,0.98597929,3237.8,3237.1,0.4616]
[1765503423663,0.58047529,3237.8,3237.1,0.4616]
[1765503423964,0.58047529,3238.0,3237.7,0.4894]
[1765503424253,0.58047529,3238.0,3237.8,0.4894]
[1765503425039,0.58047529,3237.8,3237.6,0.4616]
[1765503425239,0.58047529,3237.8,3237.3,0.4616]
[1765503425953,9.2652645,3237.9,3237.7,0.4894]
[1765503425954,6.176843,3237.9,3237.7,0.4894]
[1765503426152,3.0884215,3237.9,3237.8,0.4894]
[1765503426355,3.08823075,3238.1,3237.8,0.4894]
[1765503426560,3.08823075,3238.1,3238.0,0.4894]
[1765503427029,3.08788863,3238.5,3238.0,0.4894]
[1765503427030,6.17573794,3238.5,3238.0,0.951]
[1765503427232,3.08784931,3238.5,3238.4,0.6814]
[1765503427639,3.08784931,3238.5,3238.4,1.143]
[1765503428334,6.17573794,3238.5,3238.1,0.192]
[1765503428662,8.25005858,3238.4,3237.0,0.192]
[1765503428859,0.405504,3238.2,3237.0,0.6536]
[1765503429059,0.491,3238.3,3237.0,0.6536]
[1765503429060,0.405504,3238.0,3237.0,0.6536]
[1765503429265,0.405504,3238.0,3237.1,0.4616]
[1765503430755,0.58047529,3237.7,3236.8,0.192]
[1765503431069,0.58047529,3237.7,3236.5,0.001]
[1765503431070,0.405504,3237.1,3236.5,0.001]
[1765503431236,0.405504,3236.9,3236.5,0.001]
[1765503432162,0.405504,3236.9,3236.5,0.4626]
[1765503433079,6.17894216,3236.8,3236.5,0.001]
[1765503433279,6.17894216,3236.8,3236.5,0.4758]
[1765503433446,3.08947108,3236.8,3236.7,0.491]
[1765503434262,3.08947108,3236.8,3236.7,0.9658]
[1765503434864,3.08889849,3237.4,3236.7,1.4568]
[1765503435082,9.26383398,3238.4,3237.3,0.6823]
[1765503435286,9.26383398,3238.4,3237.5,0.4757]
[1765503435582,0.58047529,3238.3,3237.5,0.4757]
[1765503435752,0.58047529,3238.3,3237.6,0.4581]
[1765503436287,0.58047529,3238.3,3237.3,0.6494]
[1765503436486,0.58047529,3238.3,3237.4,0.4581]
[1765503436785,0.58047529,3238.3,3238.2,0.6611]
[1765503436983,0.58047529,3238.3,3237.4,0.4581]
[1765503437188,9.26440614,3238.2,3237.4,0.4581]
[1765503437998,6.17627076,3238.2,3237.4,0.4581]
[1765503438197,3.66861067,3238.2,3238.1,0.6611]
[1765503438565,3.66861067,3238.2,3238.1,1.1192]
[1765503438767,9.84488143,3238.2,3237.7,0.4581]
[1765503438963,3.08813538,3238.2,3238.1,0.6611]
[1765503439481,0.58047529,3238.3,3238.1,0.6611]
[1765503439683,0.58047529,3238.3,3237.7,0.4581]
[1765503440472,1.61402906,3238.3,3237.4,0.491]
[1765503440677,1.61402906,3238.3,3237.4,0.4581]
[1765503440678,0.405504,3238.2,3237.4,0.4581]
[1765503440871,0.491,3238.1,3237.4,0.4581]
[1765503441502,3.08813538,3238.2,3238.0,0.4757]
[1765503442891,9.26440614,3238.2,3237.3,0.1913]
[1765503443095,9.26440614,3238.2,3237.3,0.6494]
[1765503443598,9.26440614,3238.2,3237.4,0.4581]
[1765503445502,3.66861067,3238.2,3238.1,0.4757]
[1765503445698,3.66861067,3238.2,3237.4,0.4581]
[1765503445699,9.26440614,3238.2,3237.4,0.4581]
[1765503445996,9.26440614,3238.2,3237.4,0.9501]
[1765503446198,9.26440614,3238.2,3237.4,0.4581]
[1765503446970,9.26440614,3238.2,3237.3,0.1913]
[1765503446971,0.98597929,3238.1,3237.3,0.1913]
[1765503447901,9.26497836,3238.0,3237.3,0.6494]
[1765503448282,9.26497836,3238.0,3237.4,0.4581]
[1765503451613,3.66880141,3238.0,3237.9,0.4757]
[1765503451784,3.08823075,3238.1,3237.9,0.4757]
[1765503451989,6.1764615,3238.1,3237.4,0.4581]
[1765503453518,0.58047529,3238.2,3238.0,0.4757]
[1765503453899,0.58047529,3238.2,3237.6,0.4581]
[1765503455522,6.1764615,3238.1,3237.6,0.4581]
[1765503456013,3.08823075,3238.1,3238.0,0.4757]
[1765503456388,3.08823075,3238.1,3238.0,0.9338]
[1765503460825,3.08823075,3238.1,3238.0,0.4757]
[1765503463512,6.1764615,3238.1,3237.3,0.6416]
[1765503463719,9.26469225,3238.1,3237.3,0.6416]
[1765503464027,9.26469225,3238.1,3237.4,0.4503]
[1765503464526,8.46846599,3238.0,3236.8,0.4503]
[1765503465027,0.98597929,3238.0,3236.9,0.4503]
[1765503465410,0.58047529,3237.8,3236.9,0.4503]
[1765503466613,0.58047529,3237.8,3236.9,0.9413]
[1765503466818,0.58047529,3237.8,3237.7,0.4572]
[1765503467018,0.58047529,3237.8,3236.7,0.1817]
[1765503467019,0.405504,3237.7,3236.7,0.1817]
[1765503467529,0.98597929,3237.5,3236.7,0.1817]
[1765503467722,0.491,3237.4,3236.8,0.4503]
[1765503468426,0.58047529,3237.5,3236.8,0.4503]
[1765503468625,0.58047529,3237.5,3236.7,0.1817]
[1765503468626,0.405504,3237.4,3236.7,0.1817]
[1765503469203,0.405504,3237.4,3236.7,0.632]
[1765503469504,0.58047529,3237.3,3236.7,0.632]
[1765503470717,0.58047529,3237.3,3236.5,0.001]
[1765503470718,7.15423755,3236.8,3236.5,0.001]
[1765503470917,0.67573183,3236.7,3236.5,0.001]
[1765503471228,7.15423755,3236.8,3236.5,0.001]
[1765503471628,3.08956653,3236.7,3236.5,0.001]
[1765503471830,3.08956653,3236.7,3236.6,0.4503]
[1765503472001,3.08956653,3236.7,3236.5,0.001]
[1765503473008,3.08955032,3236.8,3236.5,0.001]
[1765503473215,2.65751373,3236.8,3236.5,0.001]
[1765503473428,3.08956653,3236.7,3236.5,0.001]
[1765503473732,2.51091083,3236.7,3236.5,0.001]
[1765503473924,3.08956653,3236.7,3236.5,0.001]
[1765503474122,9.81175128,3236.8,3236.5,0.001]
[1765503474433,3.08956653,3236.7,3236.5,0.001]
[1765503474637,2.51091115,3236.7,3236.5,0.001]
[1765503475032,9.66706691,3236.8,3236.5,0.001]
[1765503475331,3.08956653,3236.7,3236.5,0.001]
[1765503475635,2.51091115,3236.7,3236.5,0.001]
[1765503476133,0.141169,3236.7,3236.5,0.001]
[1765503476440,3.08956653,3236.7,3236.5,0.001]
[1765503476639,2.51091115,3236.7,3236.5,0.001]
[1765503477133,2.94322915,3236.7,3236.5,0.001]
[1765503477337,3.08956653,3236.7,3236.5,0.001]
[1765503477636,2.51091115,3236.7,3236.6,0.4572]
[1765503477842,3.08945688,3236.9,3236.6,0.4572]
[1765503478030,2.89314315,3236.9,3236.7,0.4572]
[1765503478218,0.58047529,3236.9,3236.7,0.4572]
[1765503478612,3.09119554,3236.9,3236.7,0.4572]
[1765503478935,6.17875126,3236.9,3236.5,0.001]
[1765503479137,5.94806369,3236.9,3236.5,0.001]
[1765503479317,5.80190316,3236.9,3236.5,0.001]
[1765503479734,6.03695648,3236.9,3236.5,0.001]
[1765503480036,3.08937563,3236.9,3236.5,0.001]
[1765503480236,2.69786895,3236.9,3236.5,0.001]
[1765503480439,5.78724458,3236.9,3236.6,0.4503]
[1765503480634,0.58047529,3236.8,3236.6,0.4503]
[1765503480842,5.6045419,3236.9,3236.6,0.4503]
[1765503481046,6.00374869,3236.9,3236.7,0.4572]
[1765503481222,2.81371125,3236.9,3236.8,0.4572]
[1765503481417,2.55819478,3236.9,3236.8,0.4572]
[1765503481746,6.57578781,3237.0,3236.5,0.001]
[1765503481942,3.67247313,3237.0,3236.5,0.4513]
[1765503482242,1.86200862,3237.0,3236.5,0.4513]
[1765503482426,3.08937563,3236.9,3236.5,0.4513]
[1765503482610,5.81637567,3236.9,3236.5,0.4513]
[1765503482835,3.02086021,3236.9,3236.5,0.4513]
[1765503483022,1.57765011,3237.0,3236.5,0.4513]
[1765503483342,3.08937563,3236.9,3236.5,0.4513]
[1765503483543,3.30737989,3237.0,3236.9,0.4572]
[1765503483749,2.96879004,3237.0,3236.9,0.4572]
[1765503483943,2.35048575,3237.2,3236.9,0.9075]
[1765503484105,2.35048575,3237.2,3236.5,0.001]
[1765503484106,6.07223659,3237.2,3236.5,0.001]
[1765503484312,13.50720885,3237.2,3236.5,0.4513]
[1765503484718,16.1013826,3237.2,3236.5,0.4513]
[1765503485009,13.33249867,3237.2,3236.5,0.001]
[1765503485337,18.7249069,3237.2,3236.5,0.001]
[1765503485514,15.27335952,3237.2,3236.5,0.4513]
[1765503485706,9.26735045,3237.2,3236.5,0.4513]
[1765503485912,2.35059415,3237.0,3236.9,0.4572]
[1765503486112,3.08918476,3237.1,3236.9,0.4572]
[1765503486312,2.83366829,3237.1,3236.9,0.4572]
[1765503486538,2.4712927,3237.1,3236.9,0.4572]
[1765503486844,2.34849387,3237.2,3236.9,0.4572]
[1765503487047,7.27400249,3237.3,3236.9,0.9075]
[1765503487439,7.16464655,3237.3,3236.9,0.9075]
[1765503487632,6.17798782,3237.3,3236.9,0.9075]
[1765503487940,5.96767762,3237.3,3236.9,0.9075]
[1765503488138,3.08899391,3237.3,3236.9,0.9075]
[1765503488342,6.06863188,3237.3,3236.9,0.9075]
[1765503488547,5.70625629,3237.3,3236.9,0.9075]
[1765503488844,6.17787738,3237.4,3236.9,0.9075]
[1765503489039,5.80664231,3237.4,3236.9,0.9075]
[1765503489227,10.87192642,3237.5,3236.9,0.9075]
[1765503489424,10.76257048,3237.5,3236.9,0.9075]
[1765503489627,6.17783718,3237.4,3237.0,0.4503]
[1765503489945,5.43919134,3237.4,3237.0,0.4503]
[1765503490146,6.17787738,3237.4,3237.0,0.4503]
[1765503490642,5.70614585,3237.4,3237.1,0.1817]
[1765503490846,3.08893869,3237.4,3237.3,0.4572]
[1765503491028,3.08861228,3237.7,3237.3,0.4572]
[1765503491347,2.9136097,3237.7,3237.6,0.4572]
[1765503491544,3.08851689,3237.8,3237.6,0.4572]
[1765503491755,2.74992705,3237.8,3237.6,0.9075]
[1765503491917,2.93029245,3237.9,3237.7,0.4572]
[1765503492122,2.91351431,3237.8,3237.7,0.4572]
[1765503492320,3.08851689,3237.8,3237.7,0.4572]
[1765503492550,2.7261413,3237.8,3237.7,0.4572]
[1765503492848,3.08808864,3238.3,3237.7,0.9075]
[1765503493028,6.48507962,3238.2,3237.3,0.4583]
[1765503493345,6.86987904,3238.1,3237.3,0.9493]
[1765503493558,16.10032906,3238.2,3237.3,0.9493]
[1765503493730,15.93825907,3238.2,3237.4,0.4583]
[1765503493931,0.58047529,3238.1,3237.4,0.4583]
[1765503494248,15.48280325,3238.2,3237.4,0.4583]
[1765503494464,12.28531193,3238.2,3237.4,0.4583]
[1765503494619,6.17627076,3238.2,3237.4,0.4583]
[1765503494829,3.0195246,3238.3,3237.4,0.4583]
[1765503495160,6.17569862,3238.5,3237.4,0.4583]